lending/lending_fUSD_20241007
["ID","MTS","AMOUNT","RATE_DAILY","PERIOD"]
[340030517,1728338996916,-500.0,0.00039177,120]
[340030518,1728338996955,-500.0,0.00039177,120]
[340030519,1728338997060,-500.0,0.00039177,120]
[340030520,1728338997103,-500.0,0.00039177,120]
[340030521,1728338997143,-500.0,0.00039177,120]
[340030522,1728338997182,-500.0,0.00039177,120]
[340030523,1728338997222,-500.0,0.00039177,120]
[340030524,1728338997262,-199.12946249,0.00039177,120]
[340030525,1728338997302,-1000.0,0.00039177,120]
[340030526,1728338997341,-500.0,0.00039177,120]
[340030527,1728338997380,-500.0,0.00039177,120]
[340030528,1728338997420,-503.65662885,0.00039177,120]
[340030529,1728338997459,-503.88423168,0.00039177,120]
[340030530,1728338997498,-610.80481883,0.00039177,120]
[340030531,1728338997538,-500.0,0.00039177,120]
[340030532,1728338997577,-500.0,0.00039177,120]
[340030533,1728338997616,-500.0,0.00039177,120]
[340030534,1728338997656,-500.0,0.00039177,120]
[340030535,1728338997696,-500.0,0.00039177,120]
[340030536,1728338997737,-504.77,0.00039177,120]
[340030537,1728338997778,-1479.03,0.00039177,120]
[340030538,1728338997895,-500.0,0.00039177,120]
[340030539,1728338997935,-429.12762145,0.00039177,120]
[340030540,1728338997975,-453.38703259,0.00039177,120]
[340030541,1728338998013,-500.0,0.00039177,120]
[340030542,1728338998052,-500.0,0.00039177,120]
[340030543,1728338998092,-500.0,0.00039177,120]
[340030544,1728338998133,-500.0,0.00039177,120]
[340030545,1728338998174,-500.0,0.00039177,120]
[340030546,1728338998213,-500.0,0.00039177,120]
[340030547,1728338998252,-500.0,0.00039177,120]
[340030548,1728338998292,-500.0,0.00039177,120]
[340030549,1728338998331,-500.0,0.00039177,120]
[340030550,1728338998381,-500.0,0.00039177,120]
[340030551,1728338998443,-500.0,0.00039177,120]
[340030552,1728338998504,-542.91,0.00039177,120]
[340030553,1728338998561,-500.0,0.00039177,120]
[340030554,1728338998618,-500.0,0.00039177,120]
[340030555,1728338998677,-500.0,0.00039177,120]
[340030556,1728338998730,-500.0,0.00039177,120]
[340030557,1728338998782,-500.0,0.00039177,120]
[340030558,1728338998836,-500.0,0.00039177,120]
[340030559,1728338998890,-500.0,0.00039177,120]
[340030560,1728338998942,-501.4790958,0.00039177,120]
[340030561,1728338998995,-500.0,0.00039177,120]
[340030562,1728338999165,-500.0,0.00039177,120]
[340030563,1728338999204,-586.98333959,0.00039177,120]
[340030564,1728338999242,-500.0,0.00039177,120]
[340030565,1728338999281,-500.0,0.00039177,120]
[340030566,1728338999321,-500.0,0.00039177,120]
[340030567,1728338999360,-310.63989351,0.00039177,120]
[340030568,1728338999399,-500.0,0.00039177,120]
[340030569,1728338999438,-595.91343307,0.00039177,120]
[340030570,1728338999477,-500.0,0.00039177,120]
[340030571,1728338999516,-500.0,0.00039177,120]
[340030572,1728338999555,-500.0,0.00039177,120]
[340030573,1728338999593,-500.0,0.00039177,120]
[340030574,1728338999635,-500.0,0.00039177,120]
[340030575,1728338999673,-500.0,0.00039177,120]
[340030576,1728338999713,-500.0,0.00039177,120]
[340030577,1728338999751,-1599.8166676,0.00039177,120]
[340030578,1728338999789,-500.0,0.00039177,120]
[340030579,1728338999829,-353.50408825,0.00039177,120]
[340030580,1728338999868,-505.21601616,0.00039177,120]
[340030581,1728338999906,-500.0,0.00039177,120]
[340030582,1728338999945,-500.0,0.00039177,120]
[340030583,1728339000065,-500.0,0.00039177,120]
[340030584,1728339000108,-535.3,0.00039177,120]
[340030585,1728339000150,-500.0,0.00039177,120]
[340030586,1728339000192,-500.0,0.00039177,120]
[340030587,1728339000233,-518.86634376,0.00039177,120]
[340030588,1728339000273,-684.53,0.00039177,120]
[340030589,1728339000314,-564.15113601,0.00039177,120]
[340030590,1728339000356,-500.0,0.00039177,120]
[340030591,1728339000397,-526.03,0.00039177,120]
[340030592,1728339000437,-500.0,0.00039177,120]
[340030593,1728339000477,-500.0,0.00039177,120]
[340030594,1728339000516,-500.0,0.00039177,120]
[340030595,1728339000558,-500.0,0.00039177,120]
[340030596,1728339000596,-500.0,0.00039177,120]
[340030597,1728339000637,-500.0,0.00039177,120]
[340030598,1728339000676,-500.0,0.00039177,120]
[340030599,1728339000714,-500.0,0.00039177,120]
[340030600,1728339000752,-500.34972707,0.00039177,120]
[340030601,1728339000790,-500.0,0.00039177,120]
[340030602,1728339000828,-500.0,0.00039177,120]
[340030603,1728339000866,-562.38,0.00039177,120]
[340030604,1728339000983,-500.0,0.00039177,120]
[340030605,1728339001022,-500.0,0.00039177,120]
[340030606,1728339001060,-500.0,0.00039177,120]
[340030607,1728339001102,-500.0,0.00039177,120]
[340030608,1728339001141,-500.0,0.00039177,120]
[340030609,1728339001179,-500.0,0.00039177,120]
[340030610,1728339001218,-500.0,0.00039177,120]
[340030611,1728339001257,-500.0,0.00039177,120]
[340030612,1728339001297,-500.0,0.00039177,120]
[340030613,1728339001340,-500.0,0.00039177,120]
[340030614,1728339001383,-500.0,0.00039177,120]
[340030615,1728339001423,-363.09321307,0.00039177,120]
[340030616,1728339001463,-500.0,0.00039177,120]
[340030617,1728339001504,-500.0,0.00039177,120]
[340030618,1728339001544,-500.0,0.00039177,120]
[340030619,1728339001583,-500.0,0.00039178,120]
[340030620,1728339001630,-500.0,0.00039178,120]
[340030621,1728339001672,-500.0,0.00039451,120]
[340030622,1728339001713,-1240.96,0.00039451,120]
[340030623,1728339001755,-500.0,0.00039451,120]
[340030624,1728339001796,-500.0,0.00039451,120]
[340030625,1728339001914,-396.6976522,0.00039451,120]
[340030626,1728339001955,-500.0,0.00039451,120]
[340030627,1728339001997,-500.0,0.00039451,120]
[340030628,1728339002039,-500.0,0.00039451,120]
[340030629,1728339002081,-500.0,0.00039451,120]
[340030630,1728339002123,-500.0,0.00039451,120]
[340030631,1728339002164,-500.0,0.00039451,120]
[340030632,1728339002205,-1000.0,0.00039451,120]
[340030633,1728339002249,-500.0,0.00039451,120]
[340030634,1728339002290,-290.04,0.00039451,120]
[340030635,1728339002331,-436.31,0.00039451,120]
[340030636,1728339002377,-500.0,0.00039451,120]
[340030637,1728339002421,-500.0,0.00039451,120]
[340030638,1728339002464,-504.77,0.00039451,120]
[340030639,1728339002506,-1479.03,0.00039451,120]
[340030640,1728339002546,-500.0,0.00039451,120]
[340030641,1728339002587,-500.0,0.00039451,120]
[340030642,1728339002627,-500.0,0.00039451,120]
[340030643,1728339002667,-500.0,0.00039451,120]
[340030644,1728339002706,-500.0,0.00039451,120]
[340030645,1728339002747,-500.0,0.00039451,120]
[340030646,1728339002788,-500.0,0.00039451,120]
[340030647,1728339002916,-163.12,0.00039451,120]
[340030648,1728339002960,-500.0,0.00039451,120]
[340030649,1728339003001,-288.87,0.00039451,120]
[340030650,1728339003048,-500.0,0.00039451,120]
[340030651,1728339003094,-500.0,0.00039451,120]
[340030652,1728339003139,-500.0,0.00039451,120]
[340030653,1728339003181,-500.0,0.00039451,120]
[340030654,1728339003226,-500.0,0.00039451,120]
[340030655,1728339003269,-500.0,0.00039451,120]
[340030656,1728339003314,-500.0,0.00039451,120]
[340030657,1728339003360,-500.0,0.00039451,120]
[340030658,1728339003410,-500.0,0.00039451,120]
[340030659,1728339003454,-500.0,0.00039451,120]
[340030660,1728339003498,-500.0,0.00039451,120]
[340030661,1728339003541,-500.0,0.00039451,120]
[340030662,1728339003585,-500.0,0.00039451,120]
[340030663,1728339003628,-535.3,0.00039451,120]
[340030664,1728339003671,-500.0,0.00039451,120]
[340030665,1728339003715,-500.0,0.00039451,120]
[340030666,1728339003759,-684.53,0.00039451,120]
[340030667,1728339003803,-500.0,0.00039451,120]
[340030668,1728339003935,-228.42626153,0.00039451,120]
[340030669,1728339003978,-500.0,0.00039451,120]
[340030670,1728339004028,-500.0,0.00039451,120]
[340030671,1728339004073,-500.0,0.00039451,120]
[340030672,1728339004119,-500.0,0.00039451,120]
[340030673,1728339004161,-631.12,0.00039451,120]
[340030674,1728339004203,-247.32,0.00039451,120]
[340030675,1728339004246,-465.49077153,0.00039451,120]
[340030676,1728339004289,-500.0,0.00039451,120]
[340030677,1728339004332,-340.73555564,0.00039451,120]
[340030678,1728339004375,-500.0,0.00039452,120]
[340030679,1728339004419,-500.0,0.00039452,120]
[340030680,1728339004462,-183.46744699,0.00039625,120]
[340030681,1728339004506,-500.0,0.00039724,120]
[340030682,1728339004549,-642.63,0.00039724,120]
[340030683,1728339004595,-500.0,0.00039724,120]
[340030684,1728339004657,-500.0,0.00039724,120]
[340030685,1728339004716,-1561.14,0.00039724,120]
[340030686,1728339004768,-1167.15,0.00039724,120]
[340030687,1728339004814,-500.0,0.00039724,120]
[340030688,1728339004856,-93.94466682,0.00039724,120]
[340030689,1728339031896,-150.0,0.00032405,2]
[340030690,1728339031906,-175.22741117,0.00035616,2]
[340030691,1728339031915,-145.569516,0.000358,8]
[340030692,1728339031926,-173.402698,0.000358,8]
[340030693,1728339031935,-162.64,0.00036017,2]
[340030694,1728339031945,-250.0,0.00036751,2]
[340030695,1728339031954,-200.0,0.0003721,2]
[340030696,1728339031964,-500.0,0.00037578,2]
[340030697,1728339031973,-250.0,0.00037578,2]
[340030698,1728339031982,-1000.0,0.00038215,2]
[340030699,1728339031992,-157.6,0.00038965,2]
[340030700,1728339032001,-775.56555219,0.00039352,15]
[340030701,1728339032010,-319.6893,0.00039625,2]
[340030702,1728339032019,-1611.10244981,0.00039626,2]
[340030703,1728339032030,-1460.73645019,0.00039626,2]
[340030704,1728339032039,-500.02,0.00039715,3]
[340030705,1728339032048,-500.0,0.00039724,21]
[340030706,1728339032057,-313.67842545,0.00039724,120]
[340030707,1728339032068,-92.37690773,0.00039724,120]
[340030708,1728339032077,-1604.65192167,0.00039724,120]
[340030709,1728339032093,-271.93807833,0.00039724,120]
[340030710,1728339032102,-500.0,0.00039724,120]
[340030711,1728339032111,-500.0,0.00039724,120]
[340030713,1728339032121,-500.0,0.00039724,120]
[340030714,1728339032131,-1240.96,0.00039725,120]
[340030716,1728339032139,-507.37687901,0.00039725,120]
[340030718,1728339032148,-345.86937861,0.00039725,120]
[340030720,1728339032159,-500.0,0.00039725,120]
[340030722,1728339032168,-500.0,0.00039725,120]
[340030724,1728339032177,-500.0,0.00039725,120]
[340030726,1728339032187,-500.0,0.00039725,120]
[340030728,1728339032196,-500.0,0.00039725,120]
[340030729,1728339032205,-317.12525064,0.00039725,120]
[340030730,1728339032216,-182.87474936,0.00039725,120]
[340030731,1728339032225,-604.85062173,0.00039725,120]
[340030732,1728339032236,-395.14937827,0.00039725,120]
[340030733,1728339032246,-413.99465784,0.00039725,120]
[340030734,1728339032257,-86.00534216,0.00039725,120]
[340030735,1728339032266,-500.0,0.00039725,120]
[340030736,1728339032276,-167.36820599,0.00039725,120]
[340030737,1728339032285,-504.77,0.00039725,120]
[340030738,1728339032294,-1479.03,0.00039725,120]
[340030739,1728339032303,-500.0,0.00039725,120]
[340030740,1728339032312,-500.0,0.00039725,120]
[340030741,1728339032322,-500.0,0.00039725,120]
[340030742,1728339032331,-500.0,0.00039725,120]
[340030743,1728339032340,-319.35610877,0.00039725,120]
[340030744,1728339032349,-500.0,0.00039725,120]
[340030745,1728339032358,-500.0,0.00039725,120]
[340030746,1728339032367,-500.0,0.00039725,120]
[340030747,1728339032378,-500.0,0.00039725,120]
[340030748,1728339032387,-271.9702365,0.00039725,120]
[340030749,1728339032399,-228.0297635,0.00039725,120]
[340030750,1728339032408,-500.0,0.00039725,120]
[340030751,1728339032418,-500.0,0.00039725,120]
[340030752,1728339032428,-500.0,0.00039725,120]
[340030753,1728339032438,-500.0,0.00039725,120]
[340030754,1728339032447,-500.0,0.00039725,120]
[340030755,1728339032456,-500.0,0.00039725,120]
[340030756,1728339032465,-500.0,0.00039725,120]
[340030757,1728339032474,-308.71772126,0.00039725,120]
[340030758,1728339032485,-191.28227874,0.00039725,120]
[340030759,1728339032495,-500.0,0.00039725,120]
[340030760,1728339032504,-500.0,0.00039725,120]
[340030761,1728339032512,-346.19314687,0.00039725,120]
[340030762,1728339032524,-153.80685313,0.00039725,120]
[340030763,1728339032533,-535.3,0.00039725,120]
[340030764,1728339032542,-500.0,0.00039725,120]
[340030765,1728339032551,-500.0,0.00039725,120]
[340030766,1728339032560,-684.53,0.00039725,120]
[340030767,1728339032570,-500.0,0.00039725,120]
[340030768,1728339032579,-500.0,0.00039725,120]
[340030769,1728339032588,-512.02908808,0.00039725,120]
[340030770,1728339032598,-500.0,0.00039725,120]
[340030771,1728339032607,-394.58,0.00039725,120]
[340030772,1728339032616,-500.0,0.00039725,120]
[340030773,1728339032625,-500.0,0.00039725,120]
[340030774,1728339032634,-1673.31359693,0.00039725,120]
[340030775,1728339032646,-393.79640307,0.00039725,120]
[340030776,1728339032655,-500.0,0.00039725,120]
[340030777,1728339032664,-500.0,0.00039725,120]
[340030778,1728339032674,-500.0,0.00039725,120]
[340030779,1728339032683,-515.08107526,0.00039725,120]
[340030780,1728339032694,-126.90892474,0.00039725,120]
[340030781,1728339032704,-188.09107526,0.00039725,120]
[340030782,1728339032719,-311.90892474,0.00039725,120]
[340030783,1728339032728,-185.57621526,0.00039725,120]
[340030784,1728339032739,-426.01844767,0.00039725,120]
[340030785,1728339032748,-500.0,0.00039725,120]
[340030786,1728339032756,-535.74,0.00039725,120]
[340030787,1728339032766,-264.17263106,0.00039725,120]
[340030788,1728339032777,-235.82736894,0.00039725,120]
[340030789,1728339032787,-1405.1,0.00039725,120]
[340030790,1728339032796,-1977.8,0.00039725,120]
[340030791,1728339032805,-500.0,0.00039725,120]
[340030792,1728339032815,-1715.69,0.00039725,120]
[340030793,1728339032824,-500.0,0.00039799,120]
[340030794,1728339032833,-500.0,0.00039799,120]
[340030795,1728339032842,-500.0,0.00039799,120]
[340030796,1728339032851,-1861.11,0.00039799,120]
[340030797,1728339032860,-1861.98,0.00039799,120]
[340030798,1728339032869,-500.0,0.00039799,120]
[340030799,1728339032878,-500.0,0.00039799,120]
[340030800,1728339032887,-587.17,0.00039799,120]
[340030801,1728339032897,-530.96,0.00039799,120]
[340030802,1728339032906,-500.0,0.00039799,120]
[340030803,1728339032915,-598.79261917,0.00039799,120]
[340030804,1728339032925,-500.0,0.00039799,120]
[340030805,1728339032934,-500.0,0.00039799,120]
[340030806,1728339032943,-256.833165,0.00039799,120]
[340030807,1728339032952,-500.0,0.00039799,120]
[340030808,1728339032962,-500.0,0.00039799,120]
[340030809,1728339032971,-500.0,0.00039799,120]
[340030810,1728339032980,-514.54,0.00039799,120]
[340030811,1728339032989,-500.0,0.00039799,120]
[340030812,1728339032998,-500.0,0.00039799,120]
[340030813,1728339033007,-19332.50444,0.000398,120]
[340030814,1728339033017,-210.05556761,0.00039888,2]
[340030815,1728339033026,-17321.0753686,0.00039888,6]
[340030816,1728339033106,-636.83933544,0.00039889,12]
[340030817,1728339033140,-302.10285868,0.0003989,2]
[340030818,1728339033150,-500.0,0.00039897,120]
[340030819,1728339033160,-500.0,0.00039897,120]
[340030820,1728339033170,-500.0,0.00039897,120]
[340030821,1728339033180,-500.0,0.00039897,120]
[340030822,1728339033189,-500.0,0.00039897,120]
[340030823,1728339033198,-500.0,0.00039897,120]
[340030824,1728339033208,-549.2,0.00039897,120]
[340030825,1728339033218,-500.0,0.00039897,120]
[340030826,1728339033228,-500.0,0.00039897,120]
[340030827,1728339033238,-500.0,0.00039897,120]
[340030828,1728339033248,-500.0,0.00039897,120]
[340030829,1728339033258,-590.81,0.00039897,120]
[340030830,1728339033268,-129881.3773,0.00039898,120]
[340030831,1728339033277,-200.0,0.0003995,120]
[340030832,1728339033287,-86605.3768432,0.00039988,6]
[340030833,1728339033298,-17321.0753686,0.00039989,6]
[340030834,1728339033308,-500.0,0.00039989,120]
[340030835,1728339033318,-500.0,0.00039989,120]
[340030836,1728339033328,-500.0,0.00039989,120]
[340030837,1728339033338,-500.0,0.00039989,120]
[340030838,1728339033347,-500.0,0.00039989,120]
[340030839,1728339033357,-503.47869164,0.00039989,120]
[340030840,1728339033367,-500.0,0.00039989,120]
[340030841,1728339033377,-507.15212584,0.00039989,120]
[340030842,1728339033387,-500.0,0.00039989,120]
[340030843,1728339033397,-400.24220596,0.00039989,120]
[340030844,1728339033407,-500.0,0.00039989,120]
[340030845,1728339033417,-500.0,0.00039989,120]
[340030846,1728339033426,-1002.26481569,0.00039989,120]
[340030847,1728339033436,-500.0,0.00039989,120]
[340030848,1728339033446,-10866.41754416,0.0003999,6]
[340030854,1728339038347,-265.74,0.00039799,120]
[340030855,1728339038357,-500.0,0.00039897,120]
[340030856,1728339038367,-270.0415816,0.00039897,120]
[340030857,1728339038381,-229.9584184,0.00039897,120]
[340030858,1728339038390,-1729.06733478,0.0003999,6]
[340030859,1728339038402,-2216.38758432,0.0003999,6]
[340030860,1728339038413,-1267.6,0.0003999,6]
[340030861,1728339038446,-18562.67827404,0.0003999,6]
[340030863,1728339038455,-16296.5012229,0.0003999,6]
[340030865,1728339038464,-571.95684082,0.00039997,31]
[340030867,1728339038473,-500.0,0.00039998,120]
[340030869,1728339038483,-500.0,0.00039998,120]
[340030871,1728339038493,-500.0,0.00039998,120]
[340030873,1728339038502,-500.0,0.00039998,120]
[340030875,1728339038511,-500.0,0.00039998,120]
[340030877,1728339038520,-546.22,0.00039998,120]
[340030879,1728339038529,-500.0,0.00039998,120]
[340030881,1728339038538,-500.0,0.00039998,120]
[340030883,1728339038547,-504.00908741,0.00039998,120]
[340030885,1728339038557,-1290.33,0.00039998,120]
[340030887,1728339038567,-500.0,0.00039998,120]
[340030889,1728339038577,-500.0,0.00039998,120]
[340030891,1728339038586,-506.63814886,0.00039998,120]
[340030893,1728339038595,-500.0,0.00039998,120]
[340030894,1728339038604,-500.0,0.00039998,120]
[340030896,1728339038614,-500.0,0.00039998,120]
[340030898,1728339038624,-500.0,0.00039998,120]
[340030900,1728339038633,-500.0,0.00039998,120]
[340030902,1728339038642,-500.0,0.00039998,120]
[340030904,1728339038651,-257.652575,0.00039998,120]
[340030906,1728339038661,-500.0,0.00039998,120]
[340030908,1728339038670,-500.0,0.00039998,120]
[340030909,1728339038680,-500.0,0.00039998,120]
[340030911,1728339038690,-500.0,0.00039998,120]
[340030913,1728339038699,-500.0,0.00039998,120]
[340030915,1728339038708,-560.45,0.00039998,120]
[340030916,1728339038717,-572.26,0.00039998,120]
[340030918,1728339038726,-500.0,0.00039998,120]
[340030920,1728339038735,-500.0,0.00039998,120]
[340030921,1728339038744,-500.0,0.00039998,120]
[340030923,1728339038753,-500.0,0.00039998,120]
[340030924,1728339038763,-500.0,0.00039998,120]
[340030926,1728339038772,-500.0,0.00039998,120]
[340030927,1728339038781,-500.0,0.00039998,120]
[340030929,1728339038791,-500.0,0.00039998,120]
[340030930,1728339038800,-500.0,0.00039998,120]
[340030931,1728339038809,-500.0,0.00039998,120]
[340030932,1728339038819,-500.0,0.00039998,120]
[340030933,1728339038828,-500.0,0.00039998,120]
[340030934,1728339038837,-500.0,0.00039998,120]
[340030935,1728339038846,-500.0,0.00039998,120]
[340030936,1728339038855,-500.0,0.00039998,120]
[340030937,1728339038864,-500.0,0.00039998,120]
[340030938,1728339038873,-500.0,0.00039998,120]
[340030939,1728339038882,-500.0,0.00039998,120]
[340030940,1728339038891,-500.0,0.00039998,120]
[340030941,1728339038900,-500.0,0.00039998,120]
[340030942,1728339038910,-500.0,0.00039998,120]
[340030943,1728339038919,-500.0,0.00039998,120]
[340030944,1728339038928,-253.48,0.00039998,120]
[340030945,1728339038937,-361.78278719,0.00039998,120]
[340030946,1728339038946,-500.0,0.00039998,120]
[340030947,1728339038956,-500.0,0.00039998,120]
[340030948,1728339038965,-500.0,0.00039998,120]
[340030949,1728339038974,-500.0,0.00039998,120]
[340030950,1728339039068,-593.11922789,0.00039998,120]
[340030951,1728339039078,-500.0,0.00039998,120]
[340030952,1728339039090,-500.0,0.00039998,120]
[340030953,1728339039099,-500.0,0.00039998,30]
[340030954,1728339039109,-500.0,0.00039998,120]
[340030955,1728339039118,-500.0,0.00039998,120]
[340030956,1728339039128,-631.11,0.00039998,120]
[340030957,1728339039137,-500.0,0.00039998,120]
[340030958,1728339039147,-500.0,0.00039998,120]
[340030959,1728339039156,-500.0,0.00039998,120]
[340030960,1728339039165,-500.0,0.00039998,120]
[340030961,1728339039175,-500.0,0.00039998,120]
[340030962,1728339039184,-500.0,0.00039998,120]
[340030963,1728339039193,-500.0,0.00039998,120]
[340030964,1728339039202,-168.68,0.00039998,120]
[340030965,1728339039211,-500.0,0.00039998,120]
[340030966,1728339039220,-500.0,0.00039998,120]
[340030967,1728339039229,-500.0,0.00039998,120]
[340030968,1728339039239,-500.0,0.00039998,120]
[340030969,1728339039248,-500.0,0.00039998,120]
[340030970,1728339039258,-1030.09833977,0.00039998,30]
[340030971,1728339039267,-500.0,0.00039998,120]
[340030972,1728339039276,-500.0,0.00039998,120]
[340030973,1728339039285,-500.0,0.00039998,120]
[340030974,1728339039295,-500.0,0.00039998,120]
[340030975,1728339039304,-500.0,0.00039998,120]
[340030976,1728339039313,-500.0,0.00039998,120]
[340030977,1728339039322,-500.0,0.00039998,120]
[340030978,1728339039331,-500.0,0.00039998,120]
[340030979,1728339039340,-500.0,0.00039998,120]
[340030980,1728339039349,-500.0,0.00039998,120]
[340030981,1728339039358,-500.0,0.00039998,120]
[340030982,1728339039368,-500.0,0.00039998,120]
[340030983,1728339039378,-500.0,0.00039998,120]
[340030984,1728339039387,-548.27018311,0.00039998,120]
[340030985,1728339039397,-1709.4,0.00039998,120]
[340030986,1728339039406,-518.96,0.00039998,120]
[340030987,1728339039416,-500.0,0.00039998,120]
[340030988,1728339039425,-500.0,0.00039998,120]
[340030989,1728339039435,-500.0,0.00039998,120]
[340030990,1728339039444,-1840.83,0.00039998,120]
[340030991,1728339039453,-500.0,0.00039998,120]
[340030992,1728339039463,-500.0,0.00039998,120]
[340030993,1728339039473,-1730.81,0.00039998,120]
[340030994,1728339039483,-500.0,0.00039998,120]
[340030995,1728339039493,-508.57809899,0.00039998,120]
[340030996,1728339039503,-500.0,0.00039998,120]
[340030997,1728339039512,-500.0,0.00039998,120]
[340030998,1728339039522,-500.0,0.00039998,120]
[340030999,1728339039532,-500.0,0.00039998,120]
[340031000,1728339039541,-500.0,0.00039998,120]
[340031001,1728339039550,-500.0,0.00039998,120]
[340031002,1728339039559,-500.0,0.00039998,120]
[340031003,1728339039569,-500.0,0.00039998,120]
[340031004,1728339039578,-500.0,0.00039998,120]
[340031005,1728339039587,-500.0,0.00039998,120]
[340031006,1728339039596,-500.0,0.00039998,120]
[340031007,1728339039606,-500.0,0.00039998,120]
[340031008,1728339039615,-503.48564754,0.00039998,120]
[340031009,1728339039625,-500.0,0.00039998,120]
[340031010,1728339039634,-500.0,0.00039998,120]
[340031011,1728339039643,-500.0,0.00039998,120]
[340031012,1728339039652,-500.0,0.00039998,120]
[340031013,1728339039661,-500.0,0.00039998,120]
[340031015,1728339039671,-500.0,0.00039998,120]
[340031016,1728339039680,-500.0,0.00039998,120]
[340031017,1728339039690,-642.87,0.00039998,120]
[340031018,1728339039699,-500.0,0.00039998,120]
[340031019,1728339039708,-500.0,0.00039998,120]
[340031020,1728339039717,-773.59,0.00039998,120]
[340031021,1728339039727,-500.0,0.00039998,120]
[340031022,1728339039736,-500.0,0.00039998,120]
[340031023,1728339039745,-500.0,0.00039998,120]
[340031024,1728339039754,-500.0,0.00039998,90]
[340031025,1728339039763,-500.0,0.00039998,120]
[340031026,1728339039772,-500.0,0.00039998,120]
[340031027,1728339039781,-500.0,0.00039998,120]
[340031028,1728339039790,-500.0,0.00039998,120]
[340031029,1728339039799,-500.0,0.00039998,120]
[340031030,1728339039808,-500.0,0.00039998,120]
[340031031,1728339039817,-500.0,0.00039998,120]
[340031032,1728339039826,-500.0,0.00039998,120]
[340031033,1728339039835,-500.0,0.00039998,120]
[340031034,1728339039845,-500.0,0.00039998,120]
[340031035,1728339039854,-500.0,0.00039998,120]
[340031036,1728339039862,-500.0,0.00039998,120]
[340031037,1728339039871,-500.0,0.00039998,120]
[340031038,1728339039881,-500.0,0.00039998,120]
[340031039,1728339039890,-500.0,0.00039998,120]
[340031040,1728339039899,-710.62,0.00039998,120]
[340031041,1728339039908,-500.0,0.00039998,120]
[340031042,1728339039917,-560.25,0.00039998,120]
[340031043,1728339039926,-500.0,0.00039998,120]
[340031044,1728339039935,-500.0,0.00039998,120]
[340031045,1728339039944,-500.0,0.00039998,120]
[340031046,1728339039953,-500.0,0.00039998,120]
[340031047,1728339039962,-500.0,0.00039998,120]
[340031048,1728339039971,-500.0,0.00039998,120]
[340031049,1728339039980,-500.0,0.00039998,120]
[340031050,1728339039989,-500.0,0.00039998,120]
[340031051,1728339039998,-500.0,0.00039998,120]
[340031052,1728339040007,-500.0,0.00039998,120]
[340031053,1728339040016,-500.0,0.00039998,120]
[340031054,1728339040026,-500.0,0.00039998,120]
[340031055,1728339040035,-500.0,0.00039998,120]
[340031056,1728339040044,-460.53336806,0.00039998,120]
[340031057,1728339040053,-500.0,0.00039998,120]
[340031058,1728339040062,-500.0,0.00039998,120]
[340031059,1728339040071,-500.0,0.00039998,120]
[340031060,1728339040080,-500.0,0.00039998,120]
[340031061,1728339040093,-500.0,0.00039998,120]